bitfinex/quotes_ETHUSD_20240718
["timestamp","ask_amount","ask_price","bid_price","bid_amount"]
[1721261233910,5.49579,3394.7,3393.6,2.94668]
[1721261234424,2.94612,3394.3,3393.6,2.94668]
[1721261234776,2.94604,3394.4,3393.6,2.94668]
[1721261235081,2.94586,3394.6,3393.8,2.94653]
[1721261235285,2.94595,3394.5,3393.8,0.814984]
[1721261235872,2.94604,3394.4,3393.8,0.814984]
[1721261236073,2.94604,3394.4,3393.5,2.94674]
[1721261236275,2.94613,3394.3,3393.5,2.94674]
[1721261236776,2.94629,3394.1,3393.4,0.889391]
[1721261236993,2.94621,3394.2,3393.4,6.836241]
[1721261237337,2.94629,3394.1,3393.5,0.9783171]
[1721261237490,2.94629,3394.1,3393.4,6.836241]
[1721261238611,5.49617,3394.3,3393.5,2.94678]
[1721261238783,2.94604,3394.4,3393.4,6.836261]
[1721261238988,2.94629,3394.1,3393.5,2.94679]
[1721261239376,2.94629,3394.1,3393.6,0.9783051]
[1721261239579,2.94612,3394.3,3393.6,0.9783051]
[1721261239990,2.9462,3394.2,3393.6,0.9783051]
[1721261240513,5.49578,3394.7,3393.7,2.94657]
[1721261240712,2.94596,3394.5,3393.8,2.94654]
[1721261241010,2.94596,3394.5,3393.8,3.63370351]
[1721261241817,2.94603,3394.4,3393.8,0.68716351]
[1721261242024,2.94603,3394.4,3393.4,5.94688]
[1721261242235,2.3856,3394.9,3393.4,5.94688]
[1721261242236,2.94629,3394.1,3393.4,5.94688]
[1721261242435,2.94664,3393.7,3392.7,2.94747]
[1721261242739,2.94664,3393.7,3392.9,2.94732]
[1721261243945,2.94664,3393.7,3393.0,3.0]
[1721261244114,2.94674,3393.6,3392.7,2.94744]
[1721261244296,2.94691,3393.4,3392.7,2.94744]
[1721261245433,2.94691,3393.4,3392.6,2.4221]
[1721261245434,2.94691,3393.4,3392.6,5.36967]
[1721261245744,2.94687,3393.5,3392.5,2.94766]
[1721261245745,2.94703,3393.3,3392.5,2.94766]
[1721261246346,2.94703,3393.3,3392.5,4.076018]
[1721261247543,2.94707,3393.2,3392.5,4.076018]
[1721261247702,2.94695,3393.4,3392.6,2.94756]
[1721261247900,2.94695,3393.4,3392.7,2.9475]
[1721261248131,2.94695,3393.4,3392.8,0.7023518]
[1721261248304,2.94703,3393.3,3392.7,2.9475]
[1721261249024,2.94687,3393.5,3392.7,2.9475]
[1721261249343,2.94692,3393.4,3392.7,2.9475]
[1721261250554,2.94699,3393.3,3392.6,2.94759]
[1721261250951,2.94699,3393.3,3392.6,3.6499668]
[1721261251160,2.94687,3393.5,3392.7,2.94748]
[1721261251339,2.94692,3393.4,3392.7,2.94748]
[1721261251545,2.94698,3393.3,3392.7,2.94748]
[1721261251929,2.94681,3393.5,3392.7,2.94748]
[1721261252134,2.9469,3393.4,3392.8,0.7023498]
[1721261253246,2.9469,3393.4,3392.7,2.94748]
[1721261255164,2.9469,3393.4,3392.5,4.076018]
[1721261255165,2.94656,3393.8,3392.9,2.2603]
[1721261255457,2.94656,3393.8,3393.0,2.94717]
[1721261255672,2.94664,3393.7,3393.0,2.94717]
[1721261255979,2.94664,3393.7,3393.0,3.762658]
[1721261257041,2.94674,3393.6,3393.0,0.815488]
[1721261257346,2.94674,3393.6,3392.9,2.2603]
[1721261257672,2.94686,3393.5,3392.7,2.94749]
[1721261257868,2.94697,3393.4,3392.7,2.94749]
[1721261258641,2.94698,3393.3,3392.5,4.075978]
[1721261258875,2.94721,3393.1,3392.4,2.94773]
[1721261259079,2.94721,3393.1,3392.3,2.4622]
[1721261259080,2.94725,3393.0,3392.3,2.4622]
[1721261259575,2.94739,3392.9,3392.3,2.4622]
[1721261259733,2.94739,3392.9,3392.2,2.94793]
[1721261260441,2.94739,3392.9,3392.1,3.0]
[1721261260442,2.94742,3392.8,3392.1,3.0]
[1721261260642,2.94742,3392.8,3392.1,5.94801]
[1721261260947,2.94739,3392.9,3392.0,2.94804]
[1721261260948,2.94755,3392.7,3392.0,2.94804]
[1721261261152,2.94755,3392.7,3391.9,5.31039]
[1721261261347,2.94759,3392.6,3391.9,5.31039]
[1721261261577,2.94769,3392.5,3391.9,2.3622]
[1721261262270,2.94769,3392.5,3391.8,2.94827]
[1721261263038,2.94779,3392.4,3391.8,2.94827]
[1721261263241,2.94779,3392.4,3391.5,8.37282]
[1721261263442,2.94779,3392.4,3391.5,9.210102]
[1721261264180,2.94786,3392.3,3391.5,6.261582]
[1721261264748,2.94802,3392.1,3391.5,6.261582]
[1721261265685,2.94802,3392.1,3391.5,3.837282]
[1721261266061,2.94811,3392.0,3391.5,3.0]
[1721261266260,2.94811,3392.0,3391.3,3.0]
[1721261266482,2.94811,3392.0,3391.3,5.94871]
[1721261269154,2.94811,3392.0,3391.4,2.94863]
[1721261269354,2.94811,3392.0,3391.3,3.0]
[1721261269555,2.94811,3392.0,3391.0,2.486]
[1721261269787,2.94811,3392.0,3390.8,0.4620771]
[1721261269788,2.94852,3391.6,3390.8,0.4620771]
[1721261269986,2.94852,3391.6,3390.8,1.79082481]
[1721261270188,2.94852,3391.6,3390.8,0.4620771]
[1721261270497,2.94872,3391.3,3390.8,0.4620771]
[1721261271257,2.9488,3391.2,3390.8,0.4620771]
[1721261271563,0.00145057,3391.1,3390.8,0.4620771]
[1721261271901,0.00319402,3391.1,3390.8,0.4620771]
[1721261272763,2.94899,3391.0,3390.2,3.0956337]
[1721261273291,0.00493757,3390.9,3390.2,3.70018107]
[1721261273497,0.00493757,3390.9,3390.2,0.1459837]
[1721261273798,2.94941,3390.5,3390.2,0.1459837]
[1721261274185,2.55668123,3390.8,3390.2,0.1459837]
[1721261274186,2.96317689,3390.4,3390.2,0.1459837]
[1721261274365,2.95672549,3390.4,3390.2,0.1459837]
[1721261275275,2.94959,3390.3,3390.2,0.1459837]
[1721261275476,2.95853947,3390.3,3390.2,0.1459837]
[1721261275803,8.23272947,3390.3,3390.2,0.1459837]
[1721261276094,10.78272947,3390.3,3390.2,0.1459837]
[1721261277593,10.7896545,3390.3,3390.2,0.1459837]
[1721261277773,10.79565466,3390.3,3390.2,0.1459837]
[1721261277966,10.78643566,3390.3,3390.2,0.1459837]
[1721261278480,11.33643566,3390.3,3390.2,0.1459837]
[1721261278911,8.38684566,3390.3,3388.6,2.95101]
[1721261279215,2.55,3389.4,3388.7,2.90594]
[1721261279388,2.95002,3389.8,3389.0,2.3701]
[1721261279592,0.0208815,3389.3,3389.2,5.90108]
[1721261279919,0.0208815,3389.3,3388.7,0.590708]
[1721261279920,3.0,3390.7,3390.0,2.94979]
[1721261280220,3.0,3390.7,3389.0,2.3701]
[1721261280221,2.3753,3390.5,3389.0,2.3701]
[1721261280416,2.94978,3390.1,3389.0,5.3208]
[1721261280605,0.00169384,3390.4,3389.0,2.3701]
[1721261280918,2.4356,3391.0,3389.9,2.94993]
[1721261281128,2.4356,3391.0,3390.1,2.94976]
[1721261281129,0.00343766,3390.3,3390.1,2.94976]
[1721261281308,0.00343766,3390.3,3389.9,5.25743]
[1721261281309,9.86,3391.1,3390.0,0.05899264]
[1721261281482,9.86,3391.1,3390.1,2.94969]
[1721261281483,5.49896,3391.1,3390.1,2.94969]
[1721261281682,5.49889,3391.1,3390.1,2.94969]
[1721261281883,5.30405,3391.4,3390.4,2.94944]
[1721261282084,5.30405,3391.4,3390.2,2.94967]
[1721261282085,5.49855,3391.5,3390.6,2.94931]
[1721261282320,2.55,3391.5,3390.6,2.94931]
[1721261282617,2.94829,3391.8,3390.7,0.05898582]
[1721261282789,2.94829,3391.8,3390.2,2.94967]
[1721261282790,2.94837,3391.7,3390.6,2.94931]
[1721261283319,2.55,3391.9,3390.6,0.294931]
[1721261283530,2.55,3391.9,3391.1,2.94887]
[1721261283986,3.5655081,3393.0,3391.7,2.94831]
[1721261284181,3.5655081,3393.0,3391.8,2.94822]
[1721261284182,5.49751,3392.7,3391.8,2.94822]
[1721261284417,2.4369,3393.1,3392.0,2.9481]
[1721261284418,2.94739,3392.9,3392.0,2.9481]
[1721261284932,2.55,3393.1,3392.1,0.05896088]
[1721261285120,2.55,3393.1,3392.0,2.9481]
[1721261285121,2.55,3393.1,3392.3,2.94785]
[1721261285286,2.94748,3392.8,3391.9,2.3909]
[1721261285487,2.94748,3392.8,3391.3,3.0]
[1721261285488,2.55,3392.7,3391.6,2.94845]
[1721261285695,2.94762,3392.6,3391.7,2.94834]
[1721261285895,2.94762,3392.6,3391.8,2.94827]
[1721261286307,2.94742,3392.8,3391.8,2.94827]
[1721261288804,2.94755,3392.7,3391.8,2.94827]
[1721261289003,2.94762,3392.6,3391.8,2.94827]
[1721261289203,2.94762,3392.6,3391.6,2.94845]
[1721261289404,2.94762,3392.6,3391.4,3.0]
[1721261289611,2.94762,3392.6,3391.4,0.833973]
[1721261289800,2.94762,3392.6,3391.8,2.94828]
[1721261289995,2.94741,3392.8,3391.8,2.94828]
[1721261290643,2.94753,3392.7,3391.9,2.94819]
[1721261290812,2.94736,3392.9,3391.9,5.89632]
[1721261291001,2.94736,3392.9,3391.9,2.94813]
[1721261291405,2.94736,3392.9,3392.0,2.94809]
[1721261291941,2.94753,3392.7,3391.5,2.94854]
[1721261292114,2.94769,3392.5,3391.5,2.94854]
[1721261292460,2.9475,3392.7,3390.0,3.78296656]
[1721261292461,2.94809,3392.1,3391.1,2.94888]
[1721261292605,2.2852,3392.7,3390.7,9.6481]
[1721261292606,2.94835,3391.8,3390.9,2.94902]
[1721261292805,2.94821,3391.9,3390.7,5.20731]
[1721261293011,2.94848,3391.6,3390.5,2.94941]
[1721261293416,2.94869,3391.4,3390.5,2.94941]
[1721261294164,2.94869,3391.4,3390.6,2.94931]
[1721261294521,0.6182681,3392.0,3390.1,5.20784]
[1721261294522,2.94856,3391.5,3390.1,5.20784]
[1721261294723,2.94881,3391.2,3390.2,2.9496]
[1721261294922,2.94881,3391.2,3390.3,2.94958]
[1721261295561,2.94863,3391.4,3390.4,2.94949]
[1721261295869,2.94879,3391.3,3390.4,2.94949]
[1721261296069,2.94881,3391.2,3390.4,2.94949]
[1721261296238,2.94881,3391.2,3390.2,2.94967]
[1721261296567,2.94881,3391.2,3390.3,2.94959]
[1721261296773,2.94863,3391.4,3390.4,2.94948]
[1721261297064,2.94883,3391.2,3390.2,2.94967]
[1721261297227,2.94883,3391.2,3390.4,2.94949]
[1721261297427,2.94883,3391.2,3390.2,2.94967]
[1721261297662,2.8984681,3391.7,3390.1,2.2581]
[1721261297838,2.94905,3391.0,3390.1,5.2581]
[1721261298032,0.55,3391.6,3390.1,5.2581]
[1721261298033,2.94907,3390.9,3390.1,5.2581]
[1721261298223,2.94916,3390.8,3389.8,2.95001]
[1721261298429,2.94916,3390.8,3389.9,2.94993]
[1721261298628,2.94926,3390.7,3389.7,2.95011]
[1721261298864,2.94926,3390.7,3389.8,2.95002]
[1721261299061,2.9512381,3390.6,3389.7,0.826638]
[1721261299366,2.95436632,3390.6,3389.7,2.95011]
[1721261299883,2.94946,3390.5,3389.6,2.95018]
[1721261300177,2.94959,3390.3,3389.6,2.95018]
[1721261300465,0.0067702,3390.4,3389.6,2.95018]
[1721261300640,0.01025824,3390.2,3389.6,4.076835]
[1721261300841,0.00851417,3390.3,3389.6,4.076835]
[1721261301167,0.01025824,3390.2,3389.6,4.076835]
[1721261302235,2.95993824,3390.2,3389.5,2.366]
[1721261302766,0.01025824,3390.2,3389.5,2.366]
[1721261302951,2.94925,3390.7,3389.6,2.95018]
[1721261303156,0.01200241,3390.1,3389.6,2.95018]
[1721261303474,6.5672181,3391.1,3389.5,2.366]
[1721261303475,2.9496,3390.3,3389.5,5.31628]
[1721261303782,7.31,3390.9,3389.5,5.31628]
[1721261303783,2.9495,3390.4,3389.6,2.95017]
[1721261304075,0.0084142,3390.2,3389.6,2.95017]
[1721261304294,2.94959,3390.3,3389.6,2.95017]
[1721261304295,2.95626018,3390.3,3389.6,2.95017]
[1721261304592,0.0084142,3390.2,3389.6,2.95017]
[1721261305237,2.94952,3390.4,3389.6,2.95017]
[1721261305453,0.01015832,3390.1,3389.6,2.95017]
[1721261305673,2.94959,3390.3,3389.6,2.95017]
[1721261305877,0.01249386,3390.0,3389.5,5.31628]
[1721261306089,2.94943,3390.5,3389.5,5.31628]
[1721261306253,2.94956,3390.4,3389.5,5.31628]
[1721261306455,2.94973,3390.2,3389.3,2.95044]
[1721261306691,2.94977,3390.1,3389.3,2.95044]
[1721261306979,2.95992832,3390.1,3389.4,2.95035]
[1721261307179,2.95992832,3390.1,3389.3,2.95044]
[1721261307686,2.94993,3389.9,3389.1,2.95062]
[1721261307989,2.95013,3389.7,3388.9,2.95078]
[1721261308465,2.95039,3389.4,3388.7,2.95097]
[1721261308686,0.01888046,3389.6,3388.7,0.84863104]
[1721261308861,2.94981,3390.1,3389.2,2.95053]
[1721261308862,0.02411498,3389.3,3389.2,2.95053]
[1721261309049,2.94968,3390.2,3389.4,2.95032]
[1721261309255,2.94968,3390.2,3389.2,2.95048]
[1721261309560,2.94968,3390.2,3389.4,2.95036]
[1721261309761,2.94985,3390.0,3389.1,2.95062]
[1721261310502,2.94985,3390.0,3389.1,2.95057]
[1721261311302,2.94985,3390.0,3389.3,2.95045]
[1721261311591,2.94982,3390.1,3389.3,2.95045]
[1721261311784,2.94951,3390.4,3389.3,3.540552]
[1721261311962,2.94951,3390.4,3389.5,2.95021]
[1721261312165,2.95628018,3390.3,3389.5,2.95021]
[1721261312646,2.95802419,3390.3,3389.5,2.95021]
[1721261312843,2.94969,3390.2,3389.5,2.95021]
[1721261313163,2.95992832,3390.1,3389.3,2.95045]
[1721261313358,2.94985,3390.0,3389.3,2.95045]
[1721261313681,2.96175254,3390.0,3389.2,2.95054]
[1721261314379,0.01190254,3390.0,3389.3,2.95039]
[1721261314584,2.94976,3390.1,3389.3,2.95039]
[1721261314786,0.01364686,3389.9,3389.3,2.95039]
[1721261314951,2.94976,3390.1,3389.3,2.95039]
[1721261315150,0.01539129,3389.8,3389.3,2.95039]
[1721261315385,2.94985,3390.0,3389.3,2.95039]
[1721261315590,0.01713582,3389.7,3389.3,2.95039]
[1721261315771,2.94985,3390.0,3389.3,2.95039]
[1721261316087,0.01888046,3389.6,3389.3,2.95039]
[1721261316390,0.0206252,3389.5,3389.3,2.95039]
[1721261316690,2.94985,3390.0,3389.3,2.95039]
[1721261316871,0.02237004,3389.4,3389.3,2.95039]
[1721261317070,2.94985,3390.0,3389.3,2.95039]
[1721261317291,0.02237004,3389.4,3389.3,2.95039]
[1721261317492,2.94985,3390.0,3389.3,2.95039]
[1721261317785,0.01364686,3389.9,3389.3,2.95039]
[1721261319186,2.96359686,3389.9,3389.1,2.95056]
[1721261319757,2.96359686,3389.9,3389.2,2.95049]
[1721261320187,2.96359686,3389.9,3389.1,2.95056]
[1721261320852,2.96359686,3389.9,3389.2,2.95053]
[1721261321288,2.96359686,3389.9,3389.0,2.3129]
[1721261321485,2.95013,3389.7,3389.0,2.839262]
[1721261321885,0.01888046,3389.6,3389.0,2.839262]
[1721261322680,0.01888046,3389.6,3389.0,5.789962]
[1721261323704,0.01888046,3389.6,3389.0,5.2636]
[1721261324009,0.01888046,3389.6,3389.2,2.95048]
[1721261324188,2.94994,3389.9,3389.2,2.95048]
[1721261324390,0.0206252,3389.5,3389.2,2.95048]
[1721261324793,2.94994,3389.9,3389.2,2.95048]
[1721261325096,0.02237004,3389.4,3389.2,2.95048]
[1721261325295,2.94994,3389.9,3389.2,2.95048]
[1721261325590,5.34871,3390.3,3389.3,2.95042]
[1721261325790,0.01539129,3389.8,3389.3,2.95042]
[1721261326004,2.94985,3390.0,3389.3,2.95042]
[1721261326206,0.01713582,3389.7,3389.3,2.95042]
[1721261326391,2.94985,3390.0,3389.3,2.95042]
[1721261326597,0.01888046,3389.6,3389.3,2.95042]
[1721261326791,2.94985,3390.0,3389.3,2.95042]
[1721261326995,0.0206252,3389.5,3389.1,5.90117]
[1721261327185,2.94985,3390.0,3389.1,6.722577]
[1721261327381,0.02237004,3389.4,3389.1,2.95056]
[1721261327600,2.95012,3389.7,3388.9,2.95077]
[1721261327794,2.95003,3389.8,3388.9,2.95077]
[1721261327795,0.02411498,3389.3,3388.9,2.95077]
[1721261328106,2.95021,3389.6,3388.9,2.95077]
[1721261328309,0.02586002,3389.2,3388.7,2.95095]
[1721261328513,2.95058,3389.2,3388.6,2.4937]
[1721261328815,0.02576053,3389.1,3388.4,2.95119]
[1721261329210,0.02576053,3389.1,3388.0,0.0989]
[1721261329211,2.95091,3388.8,3388.0,0.0989]
[1721261329376,2.95126,3388.4,3388.0,0.0989]
[1721261329574,2.95118,3388.5,3388.0,0.0989]
[1721261329773,0.04157855,3388.3,3388.0,0.0989]
[1721261329973,2.95099,3388.7,3388.0,0.0989]
[1721261330177,0.04332462,3388.2,3388.0,0.0989]
[1721261330406,2.4599,3388.5,3388.0,0.0989]
[1721261330407,2.95124,3388.4,3388.0,0.0989]
[1721261330608,0.0450708,3388.1,3388.0,0.0989]
[1721261330810,2.95124,3388.4,3388.0,0.0989]
[1721261331126,0.0450708,3388.1,3388.0,0.0989]
[1721261331284,2.95133,3388.3,3388.0,0.0989]
[1721261331624,7.31,3388.8,3388.1,2.95146]
[1721261331797,0.04332462,3388.2,3388.1,3.494976]
[1721261332000,7.31,3388.8,3388.1,3.494976]
[1721261332323,6.0871681,3389.5,3388.1,3.494976]
[1721261332324,0.6182681,3390.2,3389.3,2.95046]
[1721261332618,2.94986,3390.0,3389.3,2.95046]
[1721261332826,2.94972,3390.2,3389.3,2.95046]
[1721261332987,2.94976,3390.1,3389.4,2.95034]
[1721261333923,2.94976,3390.1,3388.8,2.95082]
[1721261334229,2.95026,3389.6,3388.7,2.95098]
[1721261334518,6.1293081,3389.8,3388.9,2.95072]
[1721261334682,2.95029,3389.5,3388.7,2.95098]
[1721261335122,2.95026,3389.6,3388.7,2.95098]
[1721261335328,2.95029,3389.5,3388.7,2.95098]
[1721261336150,2.95029,3389.5,3388.2,3.0]
[1721261336151,3.1792681,3389.4,3388.2,3.0]
[1721261336290,2.95081,3388.9,3388.1,8.38849]
[1721261337932,0.6182681,3389.3,3388.3,2.95131]
[1721261338153,3.1792681,3389.4,3388.1,9.532386]
[1721261338293,3.1792681,3389.4,3388.2,2.95134]
[1721261338294,2.95071,3389.1,3388.2,2.95134]
[1721261338633,5.90141,3389.1,3388.3,5.95132]
[1721261338791,2.9507,3389.1,3388.3,5.95132]
[1721261339716,3.5687381,3389.3,3388.3,5.95132]
[1721261340103,3.5687381,3389.3,3388.4,2.95117]
[1721261340294,2.95059,3389.2,3388.4,2.95117]
[1721261340628,3.5688581,3389.2,3388.3,5.95132]
[1721261340814,0.6182681,3389.3,3388.6,2.95106]
[1721261341017,0.6182681,3389.4,3388.6,2.95106]
[1721261341232,3.5686481,3389.4,3388.6,2.95106]
[1721261341743,0.6182681,3389.4,3388.4,0.9532226]
[1721261342040,0.6182681,3389.8,3389.0,5.90126]
[1721261342209,0.02412345,3389.3,3389.1,2.95059]
[1721261342413,3.5682581,3389.9,3389.1,2.95059]
[1721261342638,0.02586849,3389.2,3389.1,2.95059]
[1721261342812,3.5682581,3389.9,3389.1,2.95059]
[1721261343173,0.02586849,3389.2,3389.1,2.95059]
[1721261343307,0.6182681,3389.7,3388.8,2.95087]
[1721261343706,0.01888892,3389.6,3389.0,2.95071]
[1721261344144,0.01888892,3389.6,3389.1,2.95062]
[1721261344705,2.95005,3389.8,3389.1,2.95062]
[1721261344943,0.02063366,3389.5,3389.1,2.95062]
[1721261345253,0.0223785,3389.4,3389.2,2.95054]
[1721261345408,0.6182681,3389.9,3389.3,2.95046]
[1721261345862,0.6182681,3389.9,3389.0,2.95069]
[1721261346029,0.6182681,3389.8,3389.0,2.95069]
[1721261346451,0.6182681,3389.8,3389.3,2.95045]
[1721261348188,0.6182681,3389.7,3389.1,2.95059]
[1721261348481,0.6182681,3389.6,3388.7,5.95094]
[1721261348778,2.95036,3389.5,3388.7,5.95094]
[1721261349273,3.5686281,3389.5,3388.7,5.95094]
[1721261349635,1.23652056,3389.9,3388.7,5.95094]
[1721261349636,0.6182681,3389.6,3389.0,2.95064]
[1721261349843,3.5685481,3389.5,3388.8,2.95088]
[1721261350042,2.95028,3389.5,3388.8,2.95088]
[1721261350268,3.5685481,3389.5,3388.8,2.95088]
[1721261350642,0.6182681,3389.2,3388.5,2.95108]
[1721261350837,0.6182681,3389.2,3388.7,2.95097]
[1721261351057,0.6182681,3389.4,3388.7,0.590203]
[1721261351274,0.6182681,3389.5,3389.1,2.95063]
[1721261352138,0.6182681,3389.6,3389.1,2.95063]
[1721261352369,0.6182681,3389.5,3389.1,2.95063]
[1721261354067,0.6182681,3389.6,3389.1,2.95063]
[1721261354376,0.6182681,3389.6,3389.2,2.95054]
[1721261354676,0.6182681,3389.8,3389.3,0.05900439]
[1721261354887,0.6182681,3390.0,3389.8,2.95002]
[1721261355043,0.92733033,3390.1,3389.8,2.95002]
[1721261355044,0.6182681,3390.1,3389.8,2.95002]
[1721261355558,0.6182681,3390.1,3389.9,2.94993]
[1721261355756,0.92733033,3390.3,3389.9,2.94993]
[1721261355757,0.6182681,3390.2,3389.9,2.94993]
[1721261356077,0.6182681,3390.3,3390.1,2.94975]
[1721261356478,0.6182681,3390.4,3390.1,2.94975]
[1721261356678,0.6182681,3390.4,3390.0,2.94979]
[1721261357165,0.00575653,3390.3,3390.0,2.94979]
[1721261357482,0.62576861,3390.3,3390.0,2.94979]
[1721261358065,0.00750051,3390.3,3390.0,2.94979]
[1721261358679,0.00750051,3390.3,3389.4,2.95033]
[1721261358856,0.00750051,3390.3,3390.1,2.9497]
[1721261359203,0.6182681,3390.5,3390.2,2.94967]
[1721261359346,0.6182681,3390.7,3390.3,2.94951]
[1721261359545,0.92733033,3390.9,3390.3,2.94951]
[1721261359546,0.6182681,3390.6,3390.4,2.94946]
[1721261359762,0.6182681,3390.9,3390.5,2.9494]
[1721261359994,0.92733033,3391.1,3390.7,2.94923]
[1721261359995,0.6182681,3391.1,3390.7,2.94923]
[1721261360172,0.6182681,3391.3,3390.7,2.416]
[1721261360373,0.6182681,3391.3,3390.9,2.949]
[1721261360564,0.6182681,3391.4,3391.0,2.94895]
[1721261360749,0.6182681,3391.4,3390.9,2.949]
[1721261360750,0.6182681,3391.5,3391.1,2.94888]
[1721261361181,0.6182681,3391.5,3390.9,2.949]
[1721261361778,0.6182681,3391.5,3390.6,2.9493]
[1721261361982,0.6182681,3391.4,3390.6,2.9493]
[1721261362362,3.5669181,3391.4,3390.6,2.9493]
[1721261362692,3.5671581,3391.1,3390.0,2.94983]
[1721261362990,3.5671581,3391.1,3390.4,2.94947]
[1721261363692,0.6182681,3391.0,3390.4,2.94947]
[1721261364547,3.5671581,3391.1,3390.4,2.94947]
[1721261364753,0.01311669,3391.0,3390.4,2.94947]
[1721261364948,2.94931,3390.7,3389.8,2.94994]
[1721261365299,3.5675781,3390.7,3389.9,2.94991]
[1721261365613,2.4259,3390.5,3389.4,2.95034]
[1721261365752,3.0441681,3390.5,3389.4,2.95034]
[1721261365948,0.6182681,3390.4,3389.4,2.95034]
[1721261366411,0.00114113,3390.3,3389.4,2.95034]
[1721261366568,2.94977,3390.1,3389.4,2.95034]
[1721261366888,0.006373,3390.0,3389.4,2.95034]
[1721261367057,0.006373,3390.0,3389.0,2.95069]
[1721261367257,0.62638526,3390.0,3389.0,2.95069]
[1721261367460,3.5682981,3389.8,3389.0,2.95069]
[1721261367697,3.88530749,3390.0,3389.0,2.95069]
[1721261367698,2.95011,3389.7,3389.0,2.95069]
[1721261367883,2.9502,3389.6,3388.9,2.9508]
[1721261368059,2.96355026,3389.6,3388.9,2.9508]
[1721261368714,2.96355026,3389.6,3388.8,2.95089]
[1721261368859,2.96355026,3389.6,3388.0,3.05048]
[1721261368860,2.95073,3389.0,3388.0,3.05048]
[1721261369058,2.95055,3389.2,3388.3,2.95127]
[1721261369261,0.02556445,3388.9,3388.3,2.95126]
[1721261369458,2.95067,3389.1,3388.3,2.95126]
[1721261369693,0.02730974,3388.8,3388.3,2.95126]
[1721261369892,2.95067,3389.1,3388.4,0.590274]
[1721261370110,0.02905514,3388.7,3388.4,0.590274]
[1721261370401,2.95039,3389.4,3388.4,6.541454]
[1721261370603,2.95054,3389.3,3388.5,2.95114]
[1721261371465,2.95069,3389.1,3388.3,2.95131]
[1721261371684,2.95069,3389.1,3388.4,5.95124]
[1721261371993,2.95069,3389.1,3388.5,3.0]
[1721261372196,0.02381925,3389.0,3388.5,3.0]
[1721261372781,2.95056,3389.2,3388.5,3.0]
[1721261372989,0.02207416,3389.1,3388.5,3.0]
[1721261373503,0.02207416,3389.1,3388.7,2.95096]
[1721261374013,0.02381925,3389.0,3388.7,2.95096]
[1721261374211,2.95037,3389.4,3388.6,0.685141]
[1721261374399,0.02556445,3388.9,3388.6,2.95106]
[1721261374696,2.95037,3389.4,3388.6,2.95106]
[1721261374883,0.02730974,3388.8,3388.6,2.95106]
[1721261375085,2.95047,3389.3,3388.5,3.0]
[1721261375302,0.02905514,3388.7,3388.3,2.95133]
[1721261375500,0.02905514,3388.7,3388.0,0.0989]
[1721261375501,2.2601,3389.1,3388.0,0.0989]
[1721261375718,2.95107,3388.6,3388.0,0.0989]
[1721261376072,0.04501612,3388.5,3388.0,0.0989]
[1721261376578,0.04501612,3388.5,3388.0,3.05041]
[1721261376778,0.6182681,3389.1,3388.4,2.95124]
[1721261376992,0.6182681,3389.1,3388.0,0.404457]
[1721261376993,0.03582541,3389.0,3388.5,2.95114]
[1721261377186,3.87763033,3389.5,3388.5,2.95114]
[1721261377187,2.9503,3389.5,3388.5,2.95114]
[1721261377391,0.02884426,3389.4,3388.8,2.95087]
[1721261377566,3.5684781,3389.6,3388.8,2.95087]
[1721261377773,2.97737923,3389.5,3388.8,2.95087]
[1721261378406,0.02709923,3389.5,3388.8,2.95087]
[1721261378607,0.02709923,3389.5,3388.6,2.95106]
[1721261378608,2.9503,3389.5,3388.6,2.95106]
[1721261378911,2.9503,3389.5,3388.2,2.9514]
[1721261378912,2.95073,3389.0,3388.2,2.9514]
[1721261379073,0.02884426,3389.4,3388.3,5.95132]
[1721261379074,0.6182681,3389.3,3388.3,5.95132]
[1721261379273,0.03757096,3388.9,3388.2,3.8820927]
[1721261379473,2.9244681,3389.1,3388.0,3.356027]
[1721261379674,2.99028661,3388.8,3388.0,3.05047]
[1721261379903,2.95097,3388.8,3388.0,3.05047]
[1721261380207,2.99205236,3388.7,3388.0,3.05047]
[1721261381106,0.04106236,3388.7,3388.1,2.95149]
[1721261381527,2.95075,3389.0,3388.1,2.95149]
[1721261382012,0.03757096,3388.9,3388.2,2.95135]
[1721261382312,0.03757096,3388.9,3388.3,2.9513]
[1721261382516,0.03757096,3388.9,3388.1,0.600206]
[1721261382681,0.03757096,3388.9,3388.8,2.95089]
[1721261382881,0.92733033,3389.7,3389.0,2.95069]
[1721261382882,0.6182681,3389.7,3389.0,2.95069]
[1721261383195,0.6182681,3389.8,3389.0,2.95069]
[1721261383688,0.6182681,3389.8,3389.1,2.95062]
[1721261384005,0.6182681,3389.8,3389.2,2.95051]
[1721261384188,0.6182681,3389.8,3389.0,2.95069]
[1721261384399,3.5684381,3389.7,3388.9,2.95079]
[1721261384592,3.5684381,3389.7,3389.0,2.95069]
[1721261384788,3.5684381,3389.7,3388.8,2.95083]
[1721261385123,3.5684381,3389.7,3388.9,2.9508]
[1721261385411,3.5684681,3389.6,3388.9,2.9508]
[1721261385613,2.95044,3389.4,3388.5,2.95114]
[1721261385824,3.5687081,3389.4,3388.5,2.95114]
[1721261386014,0.6182681,3389.3,3388.5,2.95114]
[1721261386380,0.6182681,3389.3,3388.6,2.95106]
[1721261386586,3.5687081,3389.4,3388.6,2.95106]
[1721261387197,0.64885749,3389.3,3388.6,2.95106]
[1721261387398,3.59931749,3389.3,3388.4,2.95124]
[1721261387686,3.59931749,3389.3,3388.2,5.25778]
[1721261387687,2.95058,3389.2,3388.5,2.95115]
[1721261387927,2.95058,3389.2,3388.6,2.95106]
[1721261387928,0.03233463,3389.2,3388.6,2.95106]
[1721261388919,0.03233463,3389.2,3388.4,2.95123]
[1721261388920,0.03233463,3389.2,3388.7,2.95096]
[1721261389294,0.6182681,3389.4,3388.7,2.95096]